[Event "Titled Tuesday Blitz June 20 Early 2023"]
[White "Tabatabaei, M. Amin"]
[Black "Mendez Fortes, Eduardo Jesus"]
[WhiteFideId "12521213"]
[BlackFideId "3502376"]
[WhiteElo "2575"]
[BlackElo "2307"]
[Result "1-0"]
[Round "2"]
[TimeControl "180+2"]
[Date "2023.06.20"]
[WhiteClock "0:00:12"]
[BlackClock "0:00:13"]
[Board "18"]

1. d4 {[%clk 0:02:59]}  Nf6 {[%clk 0:02:59]} 2. Nf3 {[%clk 0:02:57]}  d5 {[%clk 0:02:59]} 3. Bf4 {[%clk 0:02:57]}  c5 {[%clk 0:02:59]} 4. e3 {[%clk 0:02:57]}  Nc6 {[%clk 0:02:59]} 5. Nbd2 {[%clk 0:02:58]}  Qb6 {[%clk 0:02:59]} 6. dxc5 {[%clk 0:02:58]}  Qxb2 {[%clk 0:02:59]} 7. Rb1 {[%clk 0:02:57]}  Qc3 {[%clk 0:02:59]} 8. Bb5 {[%clk 0:02:52]}  e6 {[%clk 0:02:59]} 9. O-O {[%clk 0:02:48]}  Bd7 {[%clk 0:02:51]} 10. Nb3 {[%clk 0:02:34]}  Ne4 {[%clk 0:02:35]} 11. Bxc6 {[%clk 0:02:08]}  Bxc6 {[%clk 0:02:33]} 12. Be5 {[%clk 0:01:34]}  Qc4 {[%clk 0:02:27]} 13. Na5 {[%clk 0:01:15]}  Qxc5 {[%clk 0:02:25]} 14. Nxb7 {[%clk 0:01:15]}  Qa3 {[%clk 0:02:00]} 15. Nd4 {[%clk 0:01:02]}  Nc3 {[%clk 0:01:52]} 16. Qg4 {[%clk 0:00:46]}  Nxb1 {[%clk 0:01:49]} 17. Nxc6 {[%clk 0:00:46]}  Nd2 {[%clk 0:01:41]} 18. Rd1 {[%clk 0:00:26]}  Ne4 {[%clk 0:01:17]} 19. Bxg7 {[%clk 0:00:23]}  Rg8 {[%clk 0:01:08]} 20. Bxf8 {[%clk 0:00:24]}  Kxf8 {[%clk 0:01:09]} 21. Qh4 {[%clk 0:00:22]}  Rc8 {[%clk 0:00:51]} 22. Ne5 {[%clk 0:00:20]}  Qe7 {[%clk 0:00:43]} 23. Qh6+ {[%clk 0:00:09]}  Rg7 {[%clk 0:00:43]} 24. Na5 {[%clk 0:00:09]}  Qg5 {[%clk 0:00:23]} 25. Qxg5 {[%clk 0:00:09]}  Rxg5 {[%clk 0:00:24]} 26. Nec6 {[%clk 0:00:09]}  Rc7 {[%clk 0:00:17]} 27. Rb1 {[%clk 0:00:09]}  Nc3 {[%clk 0:00:15]} 28. Rb8+ {[%clk 0:00:08]}  Kg7 {[%clk 0:00:15]} 29. a3 {[%clk 0:00:09]}  a6 {[%clk 0:00:15]} 30. Kf1 {[%clk 0:00:08]}  Nb5 {[%clk 0:00:15]} 31. a4 {[%clk 0:00:09]}  Na3 {[%clk 0:00:16]} 32. Nd4 {[%clk 0:00:06]}  Nxc2 {[%clk 0:00:13]} 33. Nf3 {[%clk 0:00:05]}  Rg6 {[%clk 0:00:12]} 34. Rb6 {[%clk 0:00:06]}  Na3 {[%clk 0:00:11]} 35. Rxa6 {[%clk 0:00:06]}  Nc4 {[%clk 0:00:12]} 36. Nxc4 {[%clk 0:00:06]}  d4 {[%clk 0:00:12]} 37. Ncd2 {[%clk 0:00:05]}  dxe3 {[%clk 0:00:12]} 38. fxe3 {[%clk 0:00:06]}  Rf6 {[%clk 0:00:12]} 39. Ke2 {[%clk 0:00:06]}  Rf5 {[%clk 0:00:13]} 40. Ra8 {[%clk 0:00:05]}  Rfc5 {[%clk 0:00:12]} 41. Nd4 {[%clk 0:00:06]}  Rc3 {[%clk 0:00:12]} 42. a5 {[%clk 0:00:06]}  Rd7 {[%clk 0:00:11]} 43. a6 {[%clk 0:00:06]}  Ra3 {[%clk 0:00:12]} 44. Nb5 {[%clk 0:00:07]}  Ra5 {[%clk 0:00:12]} 45. a7 {[%clk 0:00:07]}  Kh6 {[%clk 0:00:12]} 46. Rb8 {[%clk 0:00:07]}  Rdxa7 {[%clk 0:00:12]} 47. Nxa7 {[%clk 0:00:07]}  Rxa7 {[%clk 0:00:13]} 48. Rb4 {[%clk 0:00:08]}  Kg7 {[%clk 0:00:14]} 49. Rg4+ {[%clk 0:00:08]}  Kf6 {[%clk 0:00:14]} 50. Kf2 {[%clk 0:00:08]}  Ra2 {[%clk 0:00:14]} 51. Ke2 {[%clk 0:00:09]}  Kf5 {[%clk 0:00:14]} 52. Rg3 {[%clk 0:00:09]}  e5 {[%clk 0:00:14]} 53. Rf3+ {[%clk 0:00:10]}  Ke6 {[%clk 0:00:15]} 54. e4 {[%clk 0:00:11]}  Ra4 {[%clk 0:00:15]} 55. Rh3 {[%clk 0:00:11]}  Ra1 {[%clk 0:00:13]} 56. Rxh7 {[%clk 0:00:12]} 1-0


[Site "https://www.chess.com"]

[Event "Titled Tuesday Blitz June 20 Early 2023"]
[White "Kononenko, Dmitry"]
[Black "Makarian, Rudik"]
[WhiteFideId "14113538"]
[BlackFideId "44105681"]
[WhiteElo "2198"]
[BlackElo "2451"]
[Result "0-1"]
[Round "2"]
[TimeControl "180+2"]
[Date "2023.06.20"]
[WhiteClock "0:00:03"]
[BlackClock "0:00:35"]
[Board "20"]

1. d4 {[%clk 0:03:00]}  Nf6 {[%clk 0:03:00]} 2. c4 {[%clk 0:03:01]}  e6 {[%clk 0:03:00]} 3. g3 {[%clk 0:03:01]}  d5 {[%clk 0:03:00]} 4. Nf3 {[%clk 0:03:01]}  Bb4+ {[%clk 0:03:01]} 5. Bd2 {[%clk 0:03:01]}  Be7 {[%clk 0:03:01]} 6. Bg2 {[%clk 0:02:59]}  O-O {[%clk 0:03:02]} 7. Qc2 {[%clk 0:02:58]}  Nbd7 {[%clk 0:03:02]} 8. O-O {[%clk 0:02:58]}  c6 {[%clk 0:03:02]} 9. Bf4 {[%clk 0:02:53]}  a5 {[%clk 0:03:02]} 10. Rd1 {[%clk 0:02:47]}  Nh5 {[%clk 0:03:02]} 11. Bc1 {[%clk 0:02:47]}  b5 {[%clk 0:03:02]} 12. b3 {[%clk 0:02:42]}  Ba6 {[%clk 0:02:53]} 13. Nbd2 {[%clk 0:02:34]}  bxc4 {[%clk 0:02:47]} 14. bxc4 {[%clk 0:02:34]}  Nhf6 {[%clk 0:02:47]} 15. Bb2 {[%clk 0:02:06]}  Rc8 {[%clk 0:02:33]} 16. Rac1 {[%clk 0:01:41]}  c5 {[%clk 0:02:03]} 17. Qa4 {[%clk 0:01:25]}  Nb6 {[%clk 0:01:52]} 18. Qxa5 {[%clk 0:01:21]}  Nxc4 {[%clk 0:01:52]} 19. Nxc4 {[%clk 0:01:15]}  Bxc4 {[%clk 0:01:52]} 20. Qe1 {[%clk 0:01:05]}  Bxa2 {[%clk 0:01:46]} 21. Ne5 {[%clk 0:00:58]}  Bb3 {[%clk 0:01:40]} 22. Rd3 {[%clk 0:00:49]}  c4 {[%clk 0:01:40]} 23. Rf3 {[%clk 0:00:46]}  Nd7 {[%clk 0:01:35]} 24. Nxd7 {[%clk 0:00:43]}  Qxd7 {[%clk 0:01:36]} 25. e4 {[%clk 0:00:42]}  Bg5 {[%clk 0:01:31]} 26. Rcc3 {[%clk 0:00:40]}  Ra8 {[%clk 0:01:27]} 27. h4 {[%clk 0:00:39]}  Be7 {[%clk 0:01:26]} 28. exd5 {[%clk 0:00:32]}  exd5 {[%clk 0:01:14]} 29. Rce3 {[%clk 0:00:28]}  Bd6 {[%clk 0:01:11]} 30. Kh2 {[%clk 0:00:19]}  Bc2 {[%clk 0:01:10]} 31. Bh3 {[%clk 0:00:18]}  Qb7 {[%clk 0:01:10]} 32. Bc3 {[%clk 0:00:18]}  Be4 {[%clk 0:01:10]} 33. Rf5 {[%clk 0:00:16]}  Ra2 {[%clk 0:00:51]} 34. Re2 {[%clk 0:00:15]}  Rxe2 {[%clk 0:00:50]} 35. Qxe2 {[%clk 0:00:16]}  Qb1 {[%clk 0:00:46]} 36. Rf3 {[%clk 0:00:10]}  Bxf3 {[%clk 0:00:42]} 37. Qxf3 {[%clk 0:00:10]}  Qe4 {[%clk 0:00:40]} 38. Qxe4 {[%clk 0:00:09]}  dxe4 {[%clk 0:00:40]} 39. Bf5 {[%clk 0:00:09]}  Re8 {[%clk 0:00:40]} 40. Kg2 {[%clk 0:00:08]}  g6 {[%clk 0:00:38]} 41. Bd7 {[%clk 0:00:08]}  Re7 {[%clk 0:00:39]} 42. Bb5 {[%clk 0:00:07]}  e3 {[%clk 0:00:38]} 43. Be1 {[%clk 0:00:04]}  exf2 {[%clk 0:00:36]} 44. Kxf2 {[%clk 0:00:03]}  Bxg3+ {[%clk 0:00:34]} 45. Kxg3 {[%clk 0:00:04]}  Rxe1 {[%clk 0:00:35]} 46. Bxc4 {[%clk 0:00:03]}  Re4 {[%clk 0:00:35]} 0-1


[Site "https://www.chess.com"]

[Event "Titled Tuesday Blitz June 20 Early 2023"]
[White "Indjic, Aleksandar"]
[Black "Mortazavi, Ali"]
[WhiteFideId "911925"]
[BlackFideId "401323"]
[WhiteElo "2614"]
[BlackElo "2339"]
[Result "0-1"]
[Round "2"]
[TimeControl "180+2"]
[Date "2023.06.20"]
[WhiteClock "0:00:00"]
[BlackClock "0:00:09"]
[Board "21"]

1. e4 {[%clk 0:03:00]}  c6 {[%clk 0:02:59]} 2. d4 {[%clk 0:02:59]}  d5 {[%clk 0:03:00]} 3. exd5 {[%clk 0:02:57]}  cxd5 {[%clk 0:03:00]} 4. Bd3 {[%clk 0:02:58]}  Nc6 {[%clk 0:03:00]} 5. c3 {[%clk 0:02:57]}  Qc7 {[%clk 0:03:01]} 6. Ne2 {[%clk 0:02:51]}  Bg4 {[%clk 0:03:00]} 7. O-O {[%clk 0:02:48]}  e6 {[%clk 0:02:58]} 8. Qe1 {[%clk 0:02:49]}  Bd6 {[%clk 0:02:55]} 9. f3 {[%clk 0:02:48]}  Bf5 {[%clk 0:02:55]} 10. Bxf5 {[%clk 0:02:47]}  exf5 {[%clk 0:02:55]} 11. Nf4+ {[%clk 0:02:28]}  Kf8 {[%clk 0:02:55]} 12. Nxd5 {[%clk 0:02:23]}  Bxh2+ {[%clk 0:02:55]} 13. Kh1 {[%clk 0:02:23]}  Qd6 {[%clk 0:02:55]} 14. Ne3 {[%clk 0:02:17]}  Nge7 {[%clk 0:01:55]} 15. Nc4 {[%clk 0:01:52]}  Qg3 {[%clk 0:01:37]} 16. f4 {[%clk 0:01:36]}  Qxe1 {[%clk 0:01:37]} 17. Rxe1 {[%clk 0:01:36]}  Bg3 {[%clk 0:01:37]} 18. Rf1 {[%clk 0:01:36]}  Nd5 {[%clk 0:01:21]} 19. Nba3 {[%clk 0:01:31]}  Re8 {[%clk 0:01:18]} 20. Ne5 {[%clk 0:01:30]}  f6 {[%clk 0:01:16]} 21. Nxc6 {[%clk 0:01:23]}  bxc6 {[%clk 0:01:17]} 22. Bd2 {[%clk 0:01:22]}  Re2 {[%clk 0:01:14]} 23. Nc4 {[%clk 0:01:20]}  h5 {[%clk 0:01:04]} 24. Kg1 {[%clk 0:01:19]}  h4 {[%clk 0:01:01]} 25. Rf3 {[%clk 0:01:19]}  Kf7 {[%clk 0:00:59]} 26. Kf1 {[%clk 0:01:14]}  Re6 {[%clk 0:00:57]} 27. Rd1 {[%clk 0:01:06]}  Rhe8 {[%clk 0:00:55]} 28. b4 {[%clk 0:01:05]}  Kg6 {[%clk 0:00:48]} 29. Nb2 {[%clk 0:00:42]}  Re2 {[%clk 0:00:45]} 30. Nd3 {[%clk 0:00:40]}  Kh5 {[%clk 0:00:31]} 31. Be1 {[%clk 0:00:38]}  Rxa2 {[%clk 0:00:18]} 32. Bxg3 {[%clk 0:00:31]}  hxg3 {[%clk 0:00:18]} 33. Kg1 {[%clk 0:00:31]}  Kg4 {[%clk 0:00:12]} 34. Nc1 {[%clk 0:00:30]}  Rc2 {[%clk 0:00:10]} 35. Rfd3 {[%clk 0:00:15]}  Ne3 {[%clk 0:00:09]} 36. Rxe3 {[%clk 0:00:13]}  Rxe3 {[%clk 0:00:09]} 37. Kf1 {[%clk 0:00:14]}  Rexc3 {[%clk 0:00:09]} 38. Ne2 {[%clk 0:00:12]}  Re3 {[%clk 0:00:09]} 39. d5 {[%clk 0:00:12]}  Rexe2 {[%clk 0:00:07]} 40. d6 {[%clk 0:00:13]}  Rf2+ {[%clk 0:00:07]} 41. Kg1 {[%clk 0:00:13]}  Rxg2+ {[%clk 0:00:08]} 42. Kh1 {[%clk 0:00:00]}  Rh2+ {[%clk 0:00:09]} 0-1


[Site "https://www.chess.com"]

[Event "Titled Tuesday Blitz June 20 Early 2023"]
[White "Durarbayli, Vasif"]
[Black "Goudriaan, Etienne"]
[WhiteFideId "13402935"]
[BlackFideId "1021150"]
[WhiteElo "2551"]
[BlackElo "2318"]
[Result "1-0"]
[Round "2"]
[TimeControl "180+2"]
[Date "2023.06.20"]
[WhiteClock "0:00:11"]
[BlackClock "0:00:20"]
[Board "26"]

1. e4 {[%clk 0:03:00]}  c6 {[%clk 0:02:57]} 2. d4 {[%clk 0:03:00]}  d5 {[%clk 0:02:57]} 3. exd5 {[%clk 0:03:01]}  cxd5 {[%clk 0:02:57]} 4. c4 {[%clk 0:03:01]}  Nf6 {[%clk 0:02:57]} 5. Nc3 {[%clk 0:03:02]}  Nc6 {[%clk 0:02:57]} 6. Nf3 {[%clk 0:03:02]}  Bg4 {[%clk 0:02:56]} 7. cxd5 {[%clk 0:03:02]}  Nxd5 {[%clk 0:02:54]} 8. Qb3 {[%clk 0:02:55]}  Bxf3 {[%clk 0:02:51]} 9. gxf3 {[%clk 0:02:56]}  e6 {[%clk 0:02:51]} 10. Qxb7 {[%clk 0:02:48]}  Nxd4 {[%clk 0:02:48]} 11. Bb5+ {[%clk 0:02:48]}  Nxb5 {[%clk 0:02:48]} 12. Qc6+ {[%clk 0:02:49]}  Ke7 {[%clk 0:02:48]} 13. Qc5+ {[%clk 0:02:49]}  Nd6 {[%clk 0:02:36]} 14. Nxd5+ {[%clk 0:02:50]}  Kd7 {[%clk 0:02:36]} 15. O-O {[%clk 0:02:51]}  Qc8 {[%clk 0:02:18]} 16. Qa5 {[%clk 0:02:27]}  exd5 {[%clk 0:02:08]} 17. Rd1 {[%clk 0:02:27]}  Be7 {[%clk 0:02:05]} 18. Rxd5 {[%clk 0:02:12]}  Rd8 {[%clk 0:02:04]} 19. Bf4 {[%clk 0:01:40]}  Ke8 {[%clk 0:01:51]} 20. Rc1 {[%clk 0:01:33]}  Qe6 {[%clk 0:01:13]} 21. Re1 {[%clk 0:00:39]}  Qg6+ {[%clk 0:01:05]} 22. Rg5 {[%clk 0:00:36]}  Qf6 {[%clk 0:01:06]} 23. Rg4 {[%clk 0:00:11]}  Kf8 {[%clk 0:01:03]} 24. Bg5 {[%clk 0:00:10]}  Qxf3 {[%clk 0:00:38]} 25. Bxe7+ {[%clk 0:00:10]}  Kg8 {[%clk 0:00:38]} 26. Qg5 {[%clk 0:00:11]}  Ne8 {[%clk 0:00:19]} 27. Bxd8 {[%clk 0:00:10]}  Rxd8 {[%clk 0:00:20]} 28. Rxe8+ {[%clk 0:00:10]}  Rxe8 {[%clk 0:00:20]} 29. Qxg7# {[%clk 0:00:11]} 1-0


[Site "https://www.chess.com"]

[Event "Titled Tuesday Blitz June 20 Early 2023"]
[White "Arencibia Monduy, Antonio"]
[Black "Aravindh, Chithambaram VR."]
[WhiteFideId "3507939"]
[BlackFideId "5072786"]
[WhiteElo "2590"]
[BlackElo "2596"]
[Result "0-1"]
[Round "2"]
[TimeControl "180+2"]
[Date "2023.06.20"]
[WhiteClock "0:00:00"]
[BlackClock "0:00:04"]
[Board "27"]

1. e4 {[%clk 0:03:00]}  g6 {[%clk 0:02:58]} 2. d4 {[%clk 0:03:00]}  Bg7 {[%clk 0:02:59]} 3. Nf3 {[%clk 0:03:01]}  d6 {[%clk 0:02:58]} 4. h3 {[%clk 0:03:01]}  Nf6 {[%clk 0:02:58]} 5. Bd3 {[%clk 0:03:01]}  O-O {[%clk 0:02:59]} 6. O-O {[%clk 0:03:02]}  Nc6 {[%clk 0:02:59]} 7. c3 {[%clk 0:02:58]}  e5 {[%clk 0:02:59]} 8. Re1 {[%clk 0:02:58]}  Nh5 {[%clk 0:02:57]} 9. Bg5 {[%clk 0:02:48]}  Qe8 {[%clk 0:02:53]} 10. Be3 {[%clk 0:02:48]}  Nf4 {[%clk 0:02:48]} 11. Bc2 {[%clk 0:02:36]}  Kh8 {[%clk 0:02:28]} 12. dxe5 {[%clk 0:02:14]}  dxe5 {[%clk 0:02:27]} 13. Ba4 {[%clk 0:02:07]}  Qe7 {[%clk 0:02:23]} 14. Bxf4 {[%clk 0:01:44]}  exf4 {[%clk 0:02:22]} 15. Bxc6 {[%clk 0:01:43]}  bxc6 {[%clk 0:02:23]} 16. Nbd2 {[%clk 0:01:23]}  Rb8 {[%clk 0:02:12]} 17. Qc2 {[%clk 0:01:23]}  h5 {[%clk 0:01:32]} 18. Nd4 {[%clk 0:01:11]}  Rb6 {[%clk 0:01:23]} 19. Nc4 {[%clk 0:01:07]}  Ra6 {[%clk 0:01:23]} 20. e5 {[%clk 0:01:00]}  c5 {[%clk 0:01:21]} 21. Nb3 {[%clk 0:00:40]}  f3 {[%clk 0:01:19]} 22. Qe4 {[%clk 0:00:35]}  fxg2 {[%clk 0:01:17]} 23. Qxg2 {[%clk 0:00:30]}  Be6 {[%clk 0:01:02]} 24. Ne3 {[%clk 0:00:29]}  Bxe5 {[%clk 0:00:58]} 25. Nd5 {[%clk 0:00:15]}  Qd6 {[%clk 0:00:29]} 26. Rad1 {[%clk 0:00:15]}  Rxa2 {[%clk 0:00:19]} 27. Nb4 {[%clk 0:00:14]}  Qxd1 {[%clk 0:00:07]} 28. Rxd1 {[%clk 0:00:14]}  cxb4 {[%clk 0:00:07]} 29. Re1 {[%clk 0:00:13]}  Bg7 {[%clk 0:00:04]} 30. Nd4 {[%clk 0:00:14]}  Bxd4 {[%clk 0:00:04]} 31. cxd4 {[%clk 0:00:14]}  Bf5 {[%clk 0:00:04]} 32. Qg3 {[%clk 0:00:13]}  Rxb2 {[%clk 0:00:03]} 33. Qxc7 {[%clk 0:00:14]}  Kg8 {[%clk 0:00:03]} 34. Qxa7 {[%clk 0:00:13]}  b3 {[%clk 0:00:04]} 35. Qb6 {[%clk 0:00:13]}  Bc2 {[%clk 0:00:03]} 36. Kh2 {[%clk 0:00:12]}  Ra2 {[%clk 0:00:04]} 37. Re2 {[%clk 0:00:11]}  Raa8 {[%clk 0:00:02]} 38. Re1 {[%clk 0:00:08]}  Rab8 {[%clk 0:00:02]} 39. Qf6 {[%clk 0:00:08]}  b2 {[%clk 0:00:02]} 40. d5 {[%clk 0:00:07]}  b1=Q {[%clk 0:00:02]} 41. Rxb1 {[%clk 0:00:08]}  Bxb1 {[%clk 0:00:03]} 42. d6 {[%clk 0:00:08]}  Bf5 {[%clk 0:00:03]} 43. Kg3 {[%clk 0:00:07]}  Rbd8 {[%clk 0:00:03]} 44. Kf4 {[%clk 0:00:07]}  Be6 {[%clk 0:00:03]} 45. Kg5 {[%clk 0:00:08]}  Kh7 {[%clk 0:00:03]} 46. Qe7 {[%clk 0:00:04]}  Rfe8 {[%clk 0:00:03]} 47. Qc7 {[%clk 0:00:04]}  Rd7 {[%clk 0:00:04]} 48. Qc5 {[%clk 0:00:05]}  Kg7 {[%clk 0:00:03]} 49. Qe5+ {[%clk 0:00:04]}  Kh7 {[%clk 0:00:03]} 50. f4 {[%clk 0:00:04]}  Red8 {[%clk 0:00:03]} 51. h4 {[%clk 0:00:02]}  Rxd6 {[%clk 0:00:03]} 52. f5 {[%clk 0:00:03]}  Bxf5 {[%clk 0:00:03]} 53. Qh8+ {[%clk 0:00:01]}  Kxh8 {[%clk 0:00:03]} 54. Kh6 {[%clk 0:00:01]}  Kg8 {[%clk 0:00:03]} 55. Kg5 {[%clk 0:00:01]}  R6d7 {[%clk 0:00:04]} 56. Kh6 {[%clk 0:00:01]}  Bb1 {[%clk 0:00:04]} 57. Kg5 {[%clk 0:00:00]}  Kg7 {[%clk 0:00:04]} 0-1


[Site "https://www.chess.com"]

[Event "Titled Tuesday Blitz June 20 Early 2023"]
[White "Moksh Amit Doshi"]
[Black "Sanal, Vahap"]
[WhiteFideId "25064967"]
[BlackFideId "6300545"]
[WhiteElo "2297"]
[BlackElo "2606"]
[Result "0-1"]
[Round "2"]
[TimeControl "180+2"]
[Date "2023.06.20"]
[WhiteClock "0:00:03"]
[BlackClock "0:00:31"]
[Board "29"]

1. d4 {[%clk 0:02:54]}  d6 {[%clk 0:02:59]} 2. Nf3 {[%clk 0:02:53]}  c5 {[%clk 0:02:58]} 3. dxc5 {[%clk 0:02:48]}  Qa5+ {[%clk 0:02:57]} 4. Nc3 {[%clk 0:02:43]}  Qxc5 {[%clk 0:02:57]} 5. e4 {[%clk 0:02:43]}  Nf6 {[%clk 0:02:56]} 6. Be3 {[%clk 0:02:44]}  Qa5 {[%clk 0:02:56]} 7. Qd2 {[%clk 0:02:35]}  g6 {[%clk 0:02:51]} 8. O-O-O {[%clk 0:02:28]}  Bg7 {[%clk 0:02:51]} 9. Kb1 {[%clk 0:02:27]}  Nc6 {[%clk 0:02:46]} 10. h3 {[%clk 0:02:18]}  Be6 {[%clk 0:02:43]} 11. a3 {[%clk 0:02:18]}  O-O {[%clk 0:02:39]} 12. Ng5 {[%clk 0:02:05]}  Bd7 {[%clk 0:02:35]} 13. Bc4 {[%clk 0:02:04]}  Ne5 {[%clk 0:02:22]} 14. Ba2 {[%clk 0:02:03]}  h6 {[%clk 0:02:05]} 15. Nf3 {[%clk 0:01:34]}  Nxf3 {[%clk 0:02:05]} 16. gxf3 {[%clk 0:01:35]}  Qh5 {[%clk 0:02:05]} 17. f4 {[%clk 0:01:33]}  Be6 {[%clk 0:02:05]} 18. Bxe6 {[%clk 0:01:32]}  fxe6 {[%clk 0:02:06]} 19. Rdg1 {[%clk 0:01:30]}  Rac8 {[%clk 0:02:06]} 20. Rg3 {[%clk 0:01:30]}  Rxc3 {[%clk 0:02:05]} 21. Qxc3 {[%clk 0:01:26]}  Nxe4 {[%clk 0:02:05]} 22. Qb3 {[%clk 0:01:26]}  Nxg3 {[%clk 0:02:04]} 23. Qxe6+ {[%clk 0:01:26]}  Kh7 {[%clk 0:01:55]} 24. fxg3 {[%clk 0:01:26]}  Qf3 {[%clk 0:01:52]} 25. Rg1 {[%clk 0:01:24]}  Qc6 {[%clk 0:01:32]} 26. Bc1 {[%clk 0:01:19]}  Rc8 {[%clk 0:01:30]} 27. Qe2 {[%clk 0:01:11]}  Qc4 {[%clk 0:01:20]} 28. Re1 {[%clk 0:01:09]}  Bf6 {[%clk 0:01:18]} 29. g4 {[%clk 0:01:06]}  Qxe2 {[%clk 0:01:13]} 30. Rxe2 {[%clk 0:01:07]}  g5 {[%clk 0:01:14]} 31. f5 {[%clk 0:01:07]}  h5 {[%clk 0:01:10]} 32. b3 {[%clk 0:01:06]}  Kg7 {[%clk 0:01:07]} 33. Bb2 {[%clk 0:01:06]}  Kf7 {[%clk 0:01:06]} 34. Bxf6 {[%clk 0:01:04]}  Kxf6 {[%clk 0:00:58]} 35. Re6+ {[%clk 0:01:04]}  Kf7 {[%clk 0:00:58]} 36. gxh5 {[%clk 0:00:59]}  Rc3 {[%clk 0:00:57]} 37. Rg6 {[%clk 0:00:53]}  Rxh3 {[%clk 0:00:54]} 38. Rxg5 {[%clk 0:00:53]}  Kf6 {[%clk 0:00:55]} 39. Rg6+ {[%clk 0:00:39]}  Kxf5 {[%clk 0:00:55]} 40. Rg7 {[%clk 0:00:39]}  Kf6 {[%clk 0:00:53]} 41. Rh7 {[%clk 0:00:40]}  b5 {[%clk 0:00:51]} 42. Kb2 {[%clk 0:00:39]}  a5 {[%clk 0:00:51]} 43. b4 {[%clk 0:00:37]}  a4 {[%clk 0:00:48]} 44. Rh8 {[%clk 0:00:34]}  Kg7 {[%clk 0:00:44]} 45. Re8 {[%clk 0:00:34]}  Kf7 {[%clk 0:00:43]} 46. Rh8 {[%clk 0:00:34]}  Kg7 {[%clk 0:00:37]} 47. Re8 {[%clk 0:00:34]}  Re3 {[%clk 0:00:38]} 48. Rb8 {[%clk 0:00:33]}  Re5 {[%clk 0:00:37]} 49. c4 {[%clk 0:00:32]}  bxc4 {[%clk 0:00:36]} 50. b5 {[%clk 0:00:32]}  Re3 {[%clk 0:00:35]} 51. b6 {[%clk 0:00:30]}  Rb3+ {[%clk 0:00:36]} 52. Kc2 {[%clk 0:00:30]}  d5 {[%clk 0:00:36]} 53. b7 {[%clk 0:00:28]}  d4 {[%clk 0:00:36]} 54. Rc8 {[%clk 0:00:20]}  Rxb7 {[%clk 0:00:37]} 55. Rxc4 {[%clk 0:00:20]}  e5 {[%clk 0:00:37]} 56. Rxa4 {[%clk 0:00:18]}  Rc7+ {[%clk 0:00:35]} 57. Kd3 {[%clk 0:00:18]}  Rc3+ {[%clk 0:00:35]} 58. Ke4 {[%clk 0:00:17]}  Re3+ {[%clk 0:00:36]} 59. Kf5 {[%clk 0:00:18]}  d3 {[%clk 0:00:36]} 60. Ra7+ {[%clk 0:00:17]}  Kh6 {[%clk 0:00:36]} 61. Rd7 {[%clk 0:00:18]}  e4 {[%clk 0:00:34]} 62. a4 {[%clk 0:00:18]}  Re2 {[%clk 0:00:35]} 63. a5 {[%clk 0:00:18]}  d2 {[%clk 0:00:31]} 64. a6 {[%clk 0:00:18]}  e3 {[%clk 0:00:31]} 65. a7 {[%clk 0:00:18]}  Rf2+ {[%clk 0:00:32]} 66. Kg4 {[%clk 0:00:16]}  Rf8 {[%clk 0:00:30]} 67. Rd6+ {[%clk 0:00:10]}  Kh7 {[%clk 0:00:30]} 68. Rd7+ {[%clk 0:00:10]}  Kh8 {[%clk 0:00:31]} 69. h6 {[%clk 0:00:06]}  e2 {[%clk 0:00:30]} 70. Rxd2 {[%clk 0:00:03]}  e1=Q {[%clk 0:00:31]} 0-1


[Site "https://www.chess.com"]

[Event "Titled Tuesday Blitz June 20 Early 2023"]
[White "Baskakov, Egor"]
[Black "Sowul, Bartosz"]
[WhiteFideId "24197866"]
[BlackFideId "1137590"]
[WhiteElo "2225"]
[BlackElo "2188"]
[Result "1-0"]
[Round "2"]
[TimeControl "180+2"]
[Date "2023.06.20"]
[WhiteClock "0:01:23"]
[BlackClock "0:00:31"]
[Board "32"]

1. e4 {[%clk 0:03:00]}  c5 {[%clk 0:03:00]} 2. Nf3 {[%clk 0:03:00]}  d6 {[%clk 0:03:00]} 3. d4 {[%clk 0:02:59]}  cxd4 {[%clk 0:03:01]} 4. Nxd4 {[%clk 0:02:59]}  Nf6 {[%clk 0:03:01]} 5. Nc3 {[%clk 0:03:00]}  Nc6 {[%clk 0:03:02]} 6. g3 {[%clk 0:02:59]}  e5 {[%clk 0:02:59]} 7. Nde2 {[%clk 0:02:59]}  Bg4 {[%clk 0:02:59]} 8. Bg2 {[%clk 0:02:58]}  Nd4 {[%clk 0:02:59]} 9. Qd3 {[%clk 0:02:56]}  Nxe2 {[%clk 0:02:55]} 10. Nxe2 {[%clk 0:02:57]}  Rc8 {[%clk 0:02:55]} 11. c4 {[%clk 0:02:54]}  Qc7 {[%clk 0:02:48]} 12. b3 {[%clk 0:02:51]}  b5 {[%clk 0:02:44]} 13. cxb5 {[%clk 0:02:48]}  Qc2 {[%clk 0:02:43]} 14. Qxc2 {[%clk 0:02:44]}  Rxc2 {[%clk 0:02:44]} 15. Bd2 {[%clk 0:02:43]}  d5 {[%clk 0:02:15]} 16. exd5 {[%clk 0:02:33]}  Bc5 {[%clk 0:02:13]} 17. h3 {[%clk 0:02:18]}  Bd7 {[%clk 0:02:08]} 18. a4 {[%clk 0:02:10]}  Bxf2+ {[%clk 0:01:53]} 19. Kxf2 {[%clk 0:02:06]}  Rxd2 {[%clk 0:01:54]} 20. Rhd1 {[%clk 0:02:06]}  Rb2 {[%clk 0:01:52]} 21. Rdb1 {[%clk 0:02:01]}  Rxb1 {[%clk 0:01:13]} 22. Rxb1 {[%clk 0:02:02]}  Ke7 {[%clk 0:01:10]} 23. Rc1 {[%clk 0:01:59]}  Kd6 {[%clk 0:01:10]} 24. b4 {[%clk 0:01:49]}  Rb8 {[%clk 0:00:51]} 25. Rc5 {[%clk 0:01:40]}  e4 {[%clk 0:00:43]} 26. Nc3 {[%clk 0:01:35]}  Ke5 {[%clk 0:00:40]} 27. Ke3 {[%clk 0:01:29]}  Nh5 {[%clk 0:00:31]} 28. d6+ {[%clk 0:01:23]} 1-0


[Site "https://www.chess.com"]

[Event "Titled Tuesday Blitz June 20 Early 2023"]
[White "Eljanov, Pavel"]
[Black "Zavgorodniy, Sergiy"]
[WhiteFideId "14102951"]
[BlackFideId "14110148"]
[WhiteElo "2598"]
[BlackElo "2402"]
[Result "0-1"]
[Round "2"]
[TimeControl "180+2"]
[Date "2023.06.20"]
[WhiteClock "0:00:16"]
[BlackClock "0:00:14"]
[Board "34"]

1. d4 {[%clk 0:03:00]}  d5 {[%clk 0:02:59]} 2. c4 {[%clk 0:02:59]}  dxc4 {[%clk 0:02:59]} 3. e4 {[%clk 0:03:00]}  Nf6 {[%clk 0:02:58]} 4. e5 {[%clk 0:03:00]}  Nd5 {[%clk 0:02:59]} 5. Bxc4 {[%clk 0:03:00]}  Nb6 {[%clk 0:02:59]} 6. Bd3 {[%clk 0:02:59]}  Nc6 {[%clk 0:02:59]} 7. Ne2 {[%clk 0:03:00]}  Nb4 {[%clk 0:02:55]} 8. Be4 {[%clk 0:02:56]}  N4d5 {[%clk 0:02:47]} 9. Nbc3 {[%clk 0:02:54]}  Be6 {[%clk 0:02:46]} 10. O-O {[%clk 0:02:53]}  c6 {[%clk 0:02:43]} 11. f4 {[%clk 0:02:35]}  f5 {[%clk 0:02:41]} 12. exf6 {[%clk 0:02:30]}  exf6 {[%clk 0:02:40]} 13. f5 {[%clk 0:02:24]}  Bf7 {[%clk 0:02:40]} 14. Bxd5 {[%clk 0:02:04]}  Nxd5 {[%clk 0:02:38]} 15. Nf4 {[%clk 0:01:56]}  Nxf4 {[%clk 0:02:17]} 16. Bxf4 {[%clk 0:01:52]}  Be7 {[%clk 0:02:14]} 17. d5 {[%clk 0:01:23]}  cxd5 {[%clk 0:02:08]} 18. Qg4 {[%clk 0:01:22]}  Qb6+ {[%clk 0:01:30]} 19. Kh1 {[%clk 0:01:22]}  Qxb2 {[%clk 0:01:20]} 20. Rac1 {[%clk 0:00:49]}  Rc8 {[%clk 0:01:08]} 21. Na4 {[%clk 0:00:41]}  Rxc1 {[%clk 0:01:06]} 22. Rxc1 {[%clk 0:00:42]}  Qd4 {[%clk 0:00:54]} 23. Re1 {[%clk 0:00:38]}  O-O {[%clk 0:00:28]} 24. Nc3 {[%clk 0:00:34]}  Qxc3 {[%clk 0:00:23]} 25. Rc1 {[%clk 0:00:23]}  Qd4 {[%clk 0:00:21]} 26. Qg3 {[%clk 0:00:24]}  Re8 {[%clk 0:00:16]} 27. h3 {[%clk 0:00:16]}  Bf8 {[%clk 0:00:14]} 0-1


[Site "https://www.chess.com"]